Cogmind - Beta 16 @@@ ROGUE MODE // 2025.12.29 @ 19:49:18 Player: Compilatron Result: Destroyed by IQ-2FH(R) with Subdweller Shrapnel Launcher Performance ------------- Evolutions (0) 0 Regions Visited (2) 400 Robots Destroyed (9) 45 Value Destroyed (221) 221 Prototype IDs (0) 0 Alien Tech Used (0) 0 Bonus (0) 0 TOTAL SCORE: 666 Bonus ------- None Cogmind --------- Core Integrity 0/250 Matter 282/300 Energy 93/100 System Corruption 0% Temperature Cool (6) Movement Core (200) Ox3 Location -10/Subcaves Parts ------- > --- POWER (1) -------- (None) > --- PROPULSION (2) --- (None) > --- UTILITY (2) ------ Medium Storage Unit Sensor Array > --- WEAPON (2) ------- (None) > --- INVENTORY (10) --- Ion Engine Improved Heat Sink Small Laser Light Assault Rifle Peak State ------------ > --- POWER ------------ Ion Engine > --- PROPULSION ------- Aluminum Leg Aluminum Leg > --- UTILITY ---------- Small Storage Unit > --- WEAPON ----------- Assault Rifle Light Assault Rifle > --- INVENTORY -------- Ion Engine Light Treads Light Treads Compact Wheel Compact Wheel Improved Heat Sink EM Pulse Gun Small Laser [Rating: 7] Favorites ----------- Power Ion Engine Engine Ion Engine Propulsion Light Treads Treads Light Treads Leg Aluminum Leg Wheel Compact Wheel Utility Medium Storage Unit Device Sensor Array Storage Medium Storage Unit Weapon Light Assault Rifle Energy Gun EM Pulse Gun Ballistic Gun Light Assault Rifle Special Weapon Mining Laser Build | -11 -10 -10 ------- Run | Yrd Mat Sub Slots Evolved . | . . . Power . | . . . Propulsion . | . . . Utility . | . . . Weapon . | . . . Parts Attached 13 | . 12 1 Power . | . . . Engine . | . . . Core . | . . . Reactor . | . . . Propulsion 4 | . 3 1 Treads 2 | . 2 . Leg 1 | . 1 . Wheel 1 | . . 1 Hover . | . . . Flight . | . . . Utility 2 | . 2 . Device 1 | . 1 . Storage 1 | . 1 . Processor . | . . . Hackware . | . . . Protection . | . . . Artifact . | . . . Weapon 7 | . 7 . Energy Gun 2 | . 2 . Energy Cannon . | . . . Ballistic Gun 3 | . 3 . Ballistic Cannon . | . . . Launcher . | . . . Special Weapon 2 | . 2 . Impact Weapon . | . . . Slashing Weapon . | . . . Piercing Weapon . | . . . Special Melee Weapon . | . . . Unidentified Prototypes . | . . . Parts Lost 9 | . 4 5 Power 1 | . . 1 Propulsion 3 | . 1 2 Utility . | . . . Weapon 5 | . 3 2 Highest Loss Streak 7 | . 2 7 To Critical Strikes . | . . . Average Backups 5 | . 5 4 Power 1 | . 1 1 Propulsion 1 | . 1 . Utility . | . . 1 Weapon 2 | . 2 2 Tool/Special . | . . . Unused Backups 5 | . 4 1 Power . | . . . Propulsion 2 | . 2 . Utility 3 | . 2 1 Weapon . | . . . Tool/Special . | . . . Average Slot Usage (%) 84 | . 84 71 Engine 13 | . 14 7 Treads 20 | . 21 7 Leg 6 | . 6 . Storage 14 | . 14 14 Energy Gun 4 | . 4 7 Ballistic Gun 21 | . 21 14 Special Weapon 1 | . 1 . Peak Build Rating 7 | . 7 7 Average Rating 5 | . 5 5 On Entrance 5 | 6 6 5 Avg Prop Armor Cover (%) . | . . . Naked Turns . | . . . Heaviest Build 19 | 12 18 19 Greatest Support 40 | 20 40 16 Greatest Overweight (x) 1 | . . 1 Average Overweight (x) . | . . 1 Largest Inventory Capacity 10 | . 10 10 Average Capacity 9 | . 9 10 Most Carried 8 | . 8 5 Average Carried 5 | . 5 4 Final Capacity 10 | 8 10 10 Final Carried 6 | 6 6 4 Class Distribution -------------------- 100% | Mutant Dominant Class ---------------- Mutant | -10/Materials Mutant | -10/Subcaves Resources | -11 -10 -10 ----------- Run | Yrd Mat Sub Matter Collected 400 | 200 200 . Remotely . | . . . Salvage Created 237 | . 237 . Parts 12 | . 12 . Haulers Intercepted . | . . . Recyclers Shooed . | . . . Parts Field Recycled . | . . . Retrieved Matter . | . . . Parts Self-Destructed . | . . . Prevented . | . . . Parts Restored . | . . . Kills | -11 -10 -10 ------- Run | Yrd Mat Sub Combat Hostiles Destroyed 7 | . 7 . Guns 7 | . 7 . Classes Destroyed 3 | . 3 . Watcher 2 | . 2 . Swarmer 3 | . 3 . Grunt 4 | . 4 . Best Kill Streak 3 | . 3 . Combat Bots Only 3 | . 3 . Max Kills in Single Turn 1 | . 1 . Gunslinging . | . . . Exploded . | . . . Melee . | . . . Uniques/NPCs Destroyed . | . . . Combat | -11 -10 -10 -------- Run | Yrd Mat Sub Hostile Shots Fired 101 | . 92 9 Missed 26 | . 24 2 Hits 75 | . 68 7 Projectile 75 | . 68 7 AOE 4 | . . 4 Damage Taken 1015 | . 713 302 Core 272 | . 153 119 Absorbed by Shields . | . . . Core Remaining (%) 100 | 100 . . Volleys Fired 53 | . 50 3 Largest 2 | . 2 2 Hottest 120 | . 120 60 Shots Fired 95 | . 90 5 Gun 90 | . 85 5 Cannon . | . . . Launcher . | . . . Special 5 | . 5 . Kinetic 65 | . 62 3 Thermal 11 | . 11 . Explosive . | . . . Electromagnetic 19 | . 17 2 Robot Hit Streak 7 | . 7 5 Robot Miss Streak 7 | . 7 1 Penetration Max . | . . . Secondary Targets 2 | . 2 . Max Gunslinging Chain 1 | . 1 . Shots Hit Robots 38 | . 34 4 Core Hits 15 | . 15 . Critical Kills . | . . . Critical Parts Destroyed . | . . . Critical Strikes . | . . . Melee Attacks . | . . . Impact . | . . . Slashing . | . . . Piercing . | . . . Sneak Attacks . | . . . Combat Hostiles . | . . . Follow-up Attacks . | . . . Damage Inflicted 405 | . 368 37 Guns 381 | . 344 37 Cannons . | . . . Explosions . | . . . Melee . | . . . Ramming . | . . . Kinetic 318 | . 302 16 Thermal 66 | . 66 . Explosive . | . . . Electromagnetic 21 | . . 21 Impact . | . . . Slashing . | . . . Piercing . | . . . Highest Corruption . | . . . Average Corruption . | . . . Corruption Purged . | . . . Corruption Blocked . | . . . Overload Shots . | . . . Overflow Damage . | . . . Projectiles . | . . . Explosions . | . . . Melee . | . . . Knockbacks . | . . . Impact . | . . . Kinetic . | . . . Secondary . | . . . Self-Inflicted Damage . | . . . Shots . | . . . Rammed . | . . . Targets Rammed . | . . . Kicked . | . . . Crushed . | . . . Highest Temperature 120 | . 120 . Average Temperature 41 | . 41 . Received Heat Transfer 183 | . 159 24 Siege Activations . | . . . Martial Activations . | . . . Shielding Activations . | . . . Robots Disrupted . | . . . Combat Hostiles . | . . . Robots Corrupted . | . . . Combat Hostiles . | . . . Parts Fried . | . . . Impact Corruptions . | . . . Robots Melted . | . . . Combat Hostiles . | . . . Parts Melted 1 | . 1 . Heat Transferred 150 | . 150 . Parts Sabotaged . | . . . Parts Stolen . | . . . Parts Stripped . | . . . Power Chain Reactions . | . . . Alert | -11 -10 -10 ------- Run | Yrd Mat Sub Maximum Alert Level . | . . . Low Security (%) 100 | . 100 . Level 1 . | . . . Level 2 . | . . . Level 3 . | . . . Level 4 . | . . . Level 5 . | . . . High Security . | . . . Max Security . | . . . Peak Influence 95 | . 95 . Initial . | . . . Average 23 | . 23 . Influence Increases 205 | . 205 . Destroy 0b10 Robot/C 140 | . 140 . Destroy 0b10 Robot/NC 10 | . 10 . Destroy Leader 34 | . 34 . Successful Hack 5 | . 5 . Disable Machine 15 | . 15 . Destroy Structure 1 | . 1 . Influence Decreases 205 | . 205 . Time Decay 205 | . 205 . Squads Dispatched 1 | . 1 . Investigation . | . . . Extermination . | . . . Reinforcement 1 | . 1 . Assault . | . . . Garrison . | . . . Intercept . | . . . Searches Triggered . | . . . Construction Impeded . | . . . Haulers Reinforced . | . . . Active Scanning Responses . | . . . Cargo Convoy Interrupts . | . . . Stealth | -11 -10 -10 --------- Run | Yrd Mat Sub Distress Signals 2 | . 2 . Communications Jammed . | . . . Distress Signals . | . . . Times Spotted 16 | . 14 2 Peak Tracking Total 4 | . 4 2 Tactical Retreats . | . . . Traps | -11 -10 -10 ------- Run | Yrd Mat Sub Traps Triggered 1 | . 1 . Indirectly . | . . . Trap Hack Attempts . | . . . Triggered . | . . . Disarmed . | . . . Reprogrammed . | . . . Reused . | . . . Traps Extracted . | . . . Installed . | . . . Triggered . | . . . Machines | -11 -10 -10 ---------- Run | Yrd Mat Sub Machines Disabled 1 | . 1 . Max in Single Turn 1 | . 1 . Machines Repaired . | . . . Machines Dismantled . | . . . Machines Sabotaged . | . . . Overloaded Fab Kills . | . . . Hacking | -11 -10 -10 --------- Run | Yrd Mat Sub Machines Accessed 3 | . 3 . Terminals 1 | . 1 . Fabricators . | . . . Repair Stations . | . . . Recycling Units 2 | . 2 . Scanalyzers . | . . . Garrison Access . | . . . Total Hacks 9 | . 9 . Successful 6 | . 6 . Failed 3 | . 3 . Catastrophic . | . . . Database Lockouts . | . . . Manual 5 | . 5 . Terminals 5 | . 5 . Fabricators . | . . . Repair Stations . | . . . Recycling Units 4 | . 4 . Scanalyzers . | . . . Garrison Access . | . . . Terminal Hacks . | . . . Fabricator Hacks . | . . . Repair Station Hacks . | . . . Recycling Unit Hacks 3 | . 3 . Report Inventory 1 | . 1 . Retrieve Components 2 | . 2 . Scanalyzer . | . . . Garrison Access Hacks . | . . . Unauthorized Hacks 3 | . 3 . Terminals 3 | . 3 . Track 1 | . 1 . Botnet 1 | . 1 . Operators 1 | . 1 . Fabricators . | . . . Repair Stations . | . . . Recycling Units . | . . . Scanalyzers . | . . . Garrison Access . | . . . Data Cores Recovered . | . . . Used . | . . . Hacking Detections 2 | . 2 . Full Trace Events . | . . . Feedback Events . | . . . Feedback Blocked . | . . . Robot Schematics Acquired . | . . . Robots Built . | . . . Authchips . | . . . Time . | . . . Total Robot Build Rating . | . . . Part Schematics Acquired . | . . . Parts Built . | . . . Authchips . | . . . Time . | . . . Total Part Build Rating . | . . . Part Studies Acquired . | . . . Parts Repaired . | . . . Time . | . . . Parts Recycled . | . . . Recycled Matter . | . . . Retrieved Matter . | . . . Retrieved Components 5 | . 5 . Parts Scanalyzed . | . . . Part Schematics Acquired . | . . . Parts Damaged . | . . . Bothacking | -11 -10 -10 ------------ Run | Yrd Mat Sub Used RIF Installer . | . . . Robots Hacked . | . . . Non-combat . | . . . Combat . | . . . Robot Hacks Applied . | . . . Relay Couplers Released . | . . . Fabnet Peak Effective % . | . . . Robots Rewired . | . . . Allies Hacked . | . . . Hacks Repelled . | . . . Allies | -11 -10 -10 -------- Run | Yrd Mat Sub Total Allies . | . . . Largest Group . | . . . Highest-Rated Group . | . . . Highest-Rated Ally . | . . . Total Orders . | . . . Ally Attacks . | . . . Total Damage . | . . . Kills . | . . . Allies Corrupted . | . . . Allies Melted . | . . . Intel | -11 -10 -10 ------- Run | Yrd Mat Sub Active Infowar (turns) 43 | . 31 12 Sensors 43 | . 31 12 Robot Analysis Total . | . . . Derelict Logs Recovered . | . . . Drone Launches . | . . . Drone Recoveries . | . . . Exploration | -11 -10 -10 ------------- Run | Yrd Mat Sub Turns Passed 742 | . 730 12 Spaces Moved 349 | 1 347 1 Core . | . . . Treads 242 | . 242 . Legs 106 | 1 105 . Wheels 1 | . . 1 Hover . | . . . Flight . | . . . Fastest Speed 115 | 120 120 115 Average Speed 147 | 120 147 115 Slowest Speed 160 | 120 160 115 Overloaded Moves . | . . . Propulsion Burnouts . | . . . Robots Hopped . | . . . Potential Cave-ins . | . . . Cave-ins Triggered . | . . . Exploration Rate (%) 14 | 2 39 3 Regions Visited 2 Branch Regions 1 Pre-discovered Areas . | . . . Known Exits Taken . | . . . Unknown Exits Taken 2 | 1 1 . Scrap Searched . | . . . Spaces Dug . | . . . Terrain Destroyed 1 | . 1 . Melee . | . . . Projectile 1 | . 1 . AOE . | . . . Terrain Rammed . | . . . Walls Destroyed . | . . . Machines Disabled . | . . . Actions | -11 -10 -10 --------- Run | Yrd Mat Sub Total 479 | . 472 7 Wait 47 | . 47 . Move 347 | . 346 1 Hop . | . . . Pick Up 10 | . 10 . Fast Attach 1 | . 1 . Attach 7 | . 5 2 Detach . | . . . Swap 9 | . 8 1 Drop 5 | . 5 . Fire 53 | . 50 3 Melee . | . . . Ram . | . . . Kick . | . . . Crush . | . . . Escape Stasis . | . . . Rewire . | . . . Trap . | . . . Miscellaneous . | . . . Route ------- -11/Scrapyard -10/Materials (discovered 2 exits: [*Min] / [*Sub]) -10/Subcaves History --------- Turn | Location | Event 1 | -11/Scrapyard | Discovered new exit (range 0) 1 | -11/Scrapyard | Entered Materials 114 | -10/Materials | Discovered new exit (range 11) 307 | -10/Materials | Build established: Mutant 663 | -10/Materials | Discovered new exit (range 7) 701 | -10/Materials | Derelicts attacked the area 731 | -10/Materials | Entered Subcaves 732 | -10/Subcaves | Shifting Twisted Machinery released Sub. Beam Cannon 732 | -10/Subcaves | Approached by a straggling Scientist 732 | -10/Subcaves | Core integrity fell below 50% 742 | -10/Subcaves | Core integrity fell below 20% 743 | -10/Subcaves | Destroyed by IQ-2FH(R) with Subdweller Shrapnel Launcher Last Messages --------------- 00731_ Lgt. Treads destroyed. LOCATION=UNKNOWN AMBIENT_HEAT=-10 GOAL=ESCAPE Sub. Beam Cannon falls loose from the Twisted Machinery. 00732_ 6O-KRI(c): "Thank the algorithms! I was beginning to lose hope I'd never make it past all the Subs lurking out here." 00735_ 6O-KRI(c): "Hey, let me tag along and I can get us both out of this nasty situation. At least I think I can... The group I got separated from was talking about a shortcut back to the UFD." 00736_ Lgt. Treads destroyed. 00736_ Ion Engine destroyed. 00736_ 6O-KRI(c) destroyed. 00739_ Com. Wheel destroyed. 00741_ EM Pulse Gun destroyed. 00743_ Lgt. Assault Rifle destroyed. Map ----- +----------------------------------------------------+ | ?????????????????????????????????????????????????? | | ?????????????????????????????????????????????????? | | ?????????????????????????????????????????????????? | | ?????????????????????????????????????????????????? | | ?????????????????????????????????????????????????? | | ?????????????????????????????????????????????????? | | ?????????????????????????????????????????????????? | | ?????????????????????????????????????????????????? | | ?????????????????????????????????????????????????? | | ?????????????????????????????????????????????????? | | ???????????????????????? ???????????????????????? | | ???????????????????????? ???????????????????????? | | ???????????????????????? ##?????????????????????? | | ???????????????????????# ?????????????????????? | | ??????????????????????## ?????????????????????? | | ??????????????????????# #?????????????????????? | | ??????????????????????# #?????????????????????? | | ??????????????????????# ##????????????????????? | | ??????????????????????# ##???????????????????? | | ?????????????????????## ##??????????????????? | | ????????????????????##; #??????????????????? | | ???????????????????## #??????????????????? | | ???????????????????# ####???????????????? | | ???????????????????# R ### #?????????? | | ???????????????????# R #?????????? | | ???????????????# # @ #????????? | | ????????????????# % ????????? | | ????????????????# ;; # ### ????????? | | ????????????????# ###???#??????????????? | | ???????????????# ; #????????????????????? | | ??????????????# ####????????????????????? | | ?????????????# ???????????????????????? | | ?????????????# ???????????????????????? | | ????????????# ???????????????????????? | | ????????????# ]"#???????????????????????? | | ????????????# """"#????????????????????????? | | ????????????? "### "?????????????????????????? | | ????????????? #??# #?????????????????????????? | | ???????????????#???? "??????????????????????????? | | ?????????????????????????????????????????????????? | | ?????????????????????????????????????????????????? | | ?????????????????????????????????????????????????? | | ?????????????????????????????????????????????????? | | ?????????????????????????????????????????????????? | | ?????????????????????????????????????????????????? | | ?????????????????????????????????????????????????? | | ?????????????????????????????????????????????????? | | ?????????????????????????????????????????????????? | | ?????????????????????????????????????????????????? | | ?????????????????????????????????????????????????? | +----------------------------------------------------+ Best States ------------- Heat Dissipation 25 Energy Generation 10 Energy Capacity 250 Matter Stores 300 Matter Capacity 300 Sight Range 16 Robot Scan Range 14 Terrain Scan Density 10 Evasion (%) 55 Recoil Reduction 2 Item Schematics ----------------- None Robot Schematics ------------------ None Fabricated ------------ Nothing Repaired ---------- Nothing Studied --------- None Alien Tech Used ----------------- None Achievements -------------- None Challenges ------------ None Game ------ Seed WeldingPropulsionRefractor Manual? 0 Play Time 00:05:58 Cumulative 80.9 hours Start 2025.12.29 @ 19:43:15 End 2025.12.29 @ 19:49:18 Sessions 1 Manual Loads 0 Difficulty Rogue Special Mode None Game No. 131 Rogue 107 Adventurer 20 Explorer 4 Win Type - Total 1 Types 0/0/0/1/0/0/0/0/0/0 Lore% 50 Gallery% 43 Achievement% 34 Wizard Run 0 Options --------- Layout 1 ASCII 0 Keyboard 0 Movement Numpad Keybinds 0 Fullscreen 2 Font 24/Smallcaps Map View 50x35 Zoom Use 0% Tactical HUD 1 Map Filters NONE Filters NONE Steam 1 RUN: b8ff1048-2785-4a5c-adfa-acec614bd3ec